[Event "FISCA Open 2022"]
[Site "Cap Aurora"]
[Date "2022.06.25"]
[Round "4.6"]
[White "Negrean, Andrei"]
[Black "Mintau, Andrei-Catalin"]
[Result "1/2-1/2"]
[ECO "A43"]
[WhiteElo "1846"]
[BlackElo "2130"]
[Annotator "RC"]
[PlyCount "114"]
[EventDate "2022.06.22"]
[EventType "swiss"]
[EventCountry "ROU"]
[SourceTitle "playchess.com"]
[Source "ChessBase"]
[SourceQuality "1"]
[TimeControl "5400+30"]

1. d4 {[%emt 0:00:06]} Nf6 {[%emt 0:04:54]} 2. Nf3 {[%emt 0:00:13]} c5 {[%emt 0:00:02]} 3. d5 {[%emt 0:00:24]} b5 {[%emt 0:01:26]} 4. Bg5 {[%emt 0:00:33]} Qb6 {[%emt 0:00:19]} 5. Bxf6 {[%emt 0:01:07]} Qxf6 {[%emt 0:03:00]} 6. c3 {[%emt 0:01:06]} g6 {[%emt 0:06:30]} 7. e4 {[%emt 0:02:03]} Qb6 {[%emt 0:00:25]} 8. Nbd2 {[%emt 0:06:00]} Bg7 {[%emt 0:05:02]} 9. a4 {[%emt 0:08:52]} b4 {[%emt 0:01:15]} 10. Nc4 {[%emt 0:10:11]} Qb7 {[%emt 0:01:49]} 11. e5 {[%emt 0:02:00]} O-O {[%emt 0:05:23]} 12. Be2 {[%emt 0:09:48]} d6 {[%emt 0:10:49]} 13. O-O {[%emt 0:18:52]} bxc3 {[%emt 0:03:47]} 14. bxc3 {[%emt 0:00:34]} Qc7 {[%emt 0:00:09]} 15. Ng5 {[%emt 0:17:50]} Bxe5 {[%emt 0:39:16]} 16. Nxe5 {[%emt 0:00:09]} dxe5 {[%emt 0:00:03]} 17. Bf3 {[%emt 0:02:05]} Qd7 {[%emt 0:02:37]} 18. Qb3 {[%emt 0:12:29]} Na6 {[%emt 0:01:28]} 19. Qc4 {[%emt 0:02:08]} h6 {[%emt 0:01:51]} 20. Ne6 {[%emt 0:03:23]} Re8 {[%emt 0:04:50]} 21. Nxc5 {[%emt 0:00:34]} Nxc5 {[%emt 0:04:47]} 22. Qxc5 {[%emt 0:00:01]} Ba6 {[%emt 0:00:12]} 23. Rfc1 {[%emt 0:00:51]} Rac8 {[%emt 0:00:18]} 24. Qe3 {[%emt 0:00:15]} Qd6 {[%emt 0:01:41]} 25. Qxh6 {[%emt 0:00:30]} f5 {[%emt 0:00:32]} 26. h4 {[%emt 0:00:49]} e4 {[%emt 0:00:30]} 27. Bd1 {[%emt 0:00:34]} Kf7 {[%emt 0:00:18]} 28. Qh7+ {[%emt 0:00:28]} Kf6 {[%emt 0:00:09]} 29. h5 {[%emt 0:00:25]} gxh5 {[%emt 0:00:17]} 30. Bxh5 {[%emt 0:00:20]} Rh8 {[%emt 0:00:26]} 31. Qf7+ {[%emt 0:00:35]} Kg5 {[%emt 0:01:55]} 32. Qg7+ {[%emt 0:00:29]} Kxh5 {[%emt 0:00:00]} 33. g4+ {[%emt 0:00:08]} fxg4 {[%emt 0:00:00]} 34. Kg2 {[%emt 0:00:32]} Qg6 {[%emt 0:00:00]} 35. Qe5+ {[%emt 0:01:02]} Qg5 {[%emt 0:00:00]} 36. Rh1+ {[%emt 0:00:28]} Kg6 {[%emt 0:00:00]} 37. Qe6+ {[%emt 0:00:33]} Qf6 {[%emt 0:00:18]} 38. Qxe4+ {[%emt 0:00:21]} Qf5 {[%emt 0:00:21]} 39. Rae1 {[%emt 0:00:39]} Rxh1 {[%emt 0:01:50]} 40. Kxh1 {[%emt 0:00:11]} Qxe4+ {[%emt 0:00:34]} 41. Rxe4 {[%emt 0:00:01]} Kf6 {[%emt 0:00:40]} 42. Re6+ {[%emt 0:00:04]} Kf5 {[%emt 0:00:52]} 43. Rxa6 {[%emt 0:00:04]} Rxc3 {[%emt 0:00:01]} 44. Rxa7 {[%emt 0:00:24]} Ra3 {[%emt 0:00:42]} 45. Kg2 {[%emt 0:01:32]} Kf6 {[%emt 0:00:17]} 46. a5 {[%emt 0:00:13]} Rd3 {[%emt 0:01:08]} 47. Rd7 {[%emt 0:01:20]} Ra3 {[%emt 0:00:15]} 48. Ra7 {[%emt 0:00:14]} Rd3 {[%emt 0:00:03]} 49. Ra6+ {[%emt 0:00:55]} Kf7 {[%emt 0:00:32]} 50. Ra8 {[%emt 0:00:15]} Rxd5 {[%emt 0:00:06]} 51. a6 {[%emt 0:00:06]} Ra5 {[%emt 0:00:07]} 52. Kg3 {[%emt 0:00:47]} Ra4 {[%emt 0:00:04]} 53. a7 {[%emt 0:00:11]} Kg7 {[%emt 0:00:06]} 54. Kh4 {[%emt 0:00:13]} Kf7 {[%emt 0:00:29]} 55. Kg5 {[%emt 0:00:46]} Ke6 {[%emt 0:00:42]} 56. Kh4 {[%emt 0:00:51]} Kf7 {[%emt 0:00:39]} 57. Kg3 {[%emt 0:00:12]} Ke6 {[%emt 0:00:05]} 1/2-1/2

[Event "FISCA Open 2022"]
[Site "Cap Aurora"]
[Date "2022.06.25"]
[Round "4.7"]
[White "Capragiu, Matei-Stefan"]
[Black "Schiopu, Oana-Magdalena"]
[Result "1-0"]
[ECO "E24"]
[WhiteElo "1925"]
[BlackElo "1683"]
[Annotator "RC"]
[PlyCount "75"]
[EventDate "2022.06.22"]
[EventType "swiss"]
[EventCountry "ROU"]
[SourceTitle "playchess.com"]
[Source "ChessBase"]
[SourceQuality "1"]
[TimeControl "5400+30"]

1. d4 {[%emt 0:00:01]} Nf6 {[%emt 0:00:06]} 2. c4 {[%emt 0:00:29]} e6 {[%emt 0:00:22]} 3. Nc3 {[%emt 0:00:08]} Bb4 {[%emt 0:00:28]} 4. a3 {[%emt 0:01:36]} Bxc3+ {[%emt 0:01:02]} 5. bxc3 {[%emt 0:00:10]} O-O {[%emt 0:00:49]} 6. Bg5 {[%emt 0:00:28]} d5 {[%emt 0:01:40]} 7. e3 {[%emt 0:01:00]} Nbd7 {[%emt 0:02:32]} 8. cxd5 {[%emt 0:03:12]} exd5 {[%emt 0:00:46]} 9. Bd3 {[%emt 0:00:48]} c5 {[%emt 0:07:13]} 10. Ne2 {[%emt 0:05:20]} Re8 {[%emt 0:07:29]} 11. O-O {[%emt 0:03:52]} Qc7 {[%emt 0:04:44]} 12. f3 {[%emt 0:23:08]} h6 {[%emt 0:17:36]} 13. Bf4 {[%emt 0:02:55]} Qc6 {[%emt 0:00:09]} 14. Qd2 {[%emt 0:04:27]} b5 {[%emt 0:20:15]} 15. h4 {[%emt 0:05:50]} Nb6 {[%emt 0:08:35]} 16. Ng3 {[%emt 0:02:34]} Nc4 {[%emt 0:06:28]} 17. Qe2 {[%emt 0:01:37]} Bb7 {[%emt 0:01:57]} 18. e4 {[%emt 0:26:27]} Rad8 {[%emt 0:10:03]} 19. e5 {[%emt 0:00:49]} Nd7 {[%emt 0:00:14]} 20. Bc2 {[%emt 0:02:46]} Nf8 {[%emt 0:02:57]} 21. Nh5 {[%emt 0:04:13]} Ng6 {[%emt 0:01:50]} 22. Bg3 {[%emt 0:04:50]} Ba6 {[%emt 0:02:47]} 23. f4 {[%emt 0:01:08]} Nf8 {[%emt 0:01:19]} 24. Qg4 {[%emt 0:01:10]} g6 {[%emt 0:00:07]} 25. Nf6+ {[%emt 0:00:36]} Kh8 {[%emt 0:00:09]} 26. f5 {[%emt 0:00:38]} Kg7 {[%emt 0:01:18]} 27. Nh5+ {[%emt 0:02:35]} Kg8 {[%emt 0:00:12]} 28. fxg6 {[%emt 0:00:25]} fxg6 {[%emt 0:00:05]} 29. Nf6+ {[%emt 0:01:08]} Kg7 {[%emt 0:00:21]} 30. Nh5+ {[%emt 0:00:11]} Kg8 {[%emt 0:00:05]} 31. Rf6 {[%emt 0:00:13]} Re6 {[%emt 0:00:35]} 32. Bxg6 {[%emt 0:00:21]} Rxf6 {[%emt 0:00:08]} 33. Nxf6+ {[%emt 0:00:21]} Kh8 {[%emt 0:00:08]} 34. Qh5 {[%emt 0:00:22]} Kg7 {[%emt 0:00:24]} 35. Bf5 {[%emt 0:01:12]} Ne3 {[%emt 0:00:36]} 36. Bd3 {[%emt 0:00:54]} cxd4 {[%emt 0:01:23]} 37. Bf4 {[%emt 0:00:12]} Qxc3 {[%emt 0:00:19]} 38. Bxh6+ {[%emt 0:01:24]} 1-0

[Event "FISCA Open 2022"]
[Site "Cap Aurora"]
[Date "2022.06.25"]
[Round "4.8"]
[White "Rata, Anamaria"]
[Black "Ribarov, Valerij"]
[Result "1/2-1/2"]
[ECO "B80"]
[WhiteElo "1656"]
[BlackElo "1918"]
[Annotator "NA RC"]
[PlyCount "64"]
[EventDate "2022.06.22"]
[EventType "swiss"]
[EventCountry "ROU"]
[SourceTitle "playchess.com"]
[Source "ChessBase"]
[SourceQuality "1"]
[TimeControl "5400+30"]

1. e4 {[%emt 0:00:30]} c5 {[%emt 0:04:37]} 2. Nf3 {[%emt 0:00:06]} d6 {[%emt 0:00:28]} 3. d4 {[%emt 0:00:05]} cxd4 {[%emt 0:00:02]} 4. Nxd4 {[%emt 0:00:09]} Nf6 {[%emt 0:00:04]} 5. Nc3 {[%emt 0:00:07]} e6 {[%emt 0:00:05]} 6. Be3 {[%emt 0:00:11]} Be7 {[%emt 0:00:20]} 7. f3 {[%emt 0:00:31]} Nc6 {[%emt 0:00:10] has lost popularity (7...0-0).} 8. g4 {[%emt 0:02:39] [#]} Nxd4 $146 {[%emt 0:09:18]} ({Predecessor:} 8... Nd7 $11 {keeps the balance.} 9. Qd2 Bh4+ 10. Bf2 Bxf2+ 11. Qxf2 Nxd4 12. Qxd4 Qh4+ 13. Qf2 Qxf2+ 14. Kxf2 Ke7 15. Be2 {½-½ (38) Eliseev,U (2541)-Korobov,A (2698) Loo 2013}) 9. Qxd4 {[%emt 0:04:17]} O-O {[%emt 0:03:18]} 10. h4 {[%emt 0:05:51]} Bd7 {[%emt 0:01:21]} 11. O-O-O {[%emt 0:09:43]} Bc6 {[%emt 0:03:54]} 12. h5 {[%emt 0:09:57]} Nd7 {[%emt 0:04:34]} 13. Rg1 {[%emt 0:24:41]} Qa5 {[%emt 0:06:21]} 14. g5 {[%emt 0:02:34]} b5 {[%emt 0:03:11]} 15. Kb1 {[%emt 0:06:26]} b4 {[%emt 0:18:15]} 16. Ne2 {[%emt 0:00:26]} Qb6 {[%emt 0:13:46]} 17. Qd2 {[%emt 0:03:43]} Nc5 {[%emt 0:15:22]} 18. Bh3 {[%emt 0:08:47]} g6 {[%emt 0:08:36]} 19. hxg6 {[%emt 0:00:37]} hxg6 {[%emt 0:00:07]} 20. Nf4 {[%emt 0:05:40]} e5 {[%emt 0:02:25]} 21. Qh2 $18 {[%emt 0:11:50]} Kg7 {[%emt 0:01:25]} 22. Nd5 {[%emt 0:01:55]} Bxd5 {[%emt 0:01:40]} 23. Rxd5 {[%emt 0:00:15]} Qc7 {[%emt 0:01:27]} 24. Bxc5 {[%emt 0:00:41]} dxc5 {[%emt 0:00:01]} 25. Qxe5+ {[%emt 0:00:11]} Qxe5 {[%emt 0:00:07]} 26. Rxe5 {[%emt 0:00:04]} Rh8 {[%emt 0:00:45]} 27. Bg4 {[%emt 0:01:22]} Bd6 {[%emt 0:00:06]} 28. Rd5 {[%emt 0:00:05]} Bf4 {[%emt 0:00:07]} 29. Rgd1 {[%emt 0:00:52]} Be3 {[%emt 0:00:33]} 30. Re1 {[%emt 0:00:39]} Bd4 {[%emt 0:00:36]} 31. e5 {[%emt 0:00:32]} Rad8 {[%emt 0:00:41]} 32. Rxd8 {[%emt 0:00:18]} Rxd8 {[%emt 0:02:48]} 1/2-1/2

[Event "FISCA Open 2022"]
[Site "Cap Aurora"]
[Date "2022.06.25"]
[Round "4.9"]
[White "Stegaroiu, Marcel-Florian"]
[Black "Chicarosie, Ioana-Bianca"]
[Result "1/2-1/2"]
[ECO "A03"]
[WhiteElo "1917"]
[BlackElo "1605"]
[Annotator "RC"]
[PlyCount "77"]
[EventDate "2022.06.22"]
[EventType "swiss"]
[EventCountry "ROU"]
[SourceTitle "playchess.com"]
[Source "ChessBase"]
[SourceQuality "1"]
[TimeControl "5400+30"]

1. f4 {[%emt 0:00:03]} d5 {[%emt 0:01:00]} 2. Nf3 {[%emt 0:00:33]} c5 {[%emt 0:01:15]} 3. b3 {[%emt 0:05:27]} Nc6 {[%emt 0:02:25]} 4. Bb2 {[%emt 0:00:31]} Nf6 {[%emt 0:06:05]} 5. e3 {[%emt 0:00:37]} Bg4 {[%emt 0:03:51]} 6. Be2 {[%emt 0:00:33]} Qc7 {[%emt 0:03:25]} 7. Ne5 {[%emt 0:02:14]} Bxe2 {[%emt 0:01:17]} 8. Qxe2 {[%emt 0:00:07]} Nd7 {[%emt 0:00:39]} 9. Nxd7 {[%emt 0:01:36]} Qxd7 {[%emt 0:00:12]} 10. O-O {[%emt 0:00:15]} O-O-O {[%emt 0:02:06]} 11. a4 {[%emt 0:01:22]} f6 {[%emt 0:01:32]} 12. d4 {[%emt 0:03:55]} e6 {[%emt 0:04:44]} 13. Nd2 {[%emt 0:04:15]} Bd6 {[%emt 0:07:45]} 14. c3 {[%emt 0:05:46]} cxd4 {[%emt 0:03:09]} 15. cxd4 {[%emt 0:01:00]} Nb4 {[%emt 0:02:19]} 16. Bc3 {[%emt 0:02:40]} Kb8 {[%emt 0:02:16]} 17. Nf3 {[%emt 0:03:42]} Rc8 {[%emt 0:01:49]} 18. Qd2 {[%emt 0:00:40]} Qe7 {[%emt 0:04:59]} 19. Rfc1 {[%emt 0:10:18]} Rc6 {[%emt 0:05:14]} 20. Bb2 {[%emt 0:04:08]} Rhc8 {[%emt 0:02:14]} 21. Rxc6 {[%emt 0:00:14]} Rxc6 {[%emt 0:00:08]} 22. Rc1 {[%emt 0:01:53]} Qc7 {[%emt 0:01:40]} 23. Rxc6 {[%emt 0:01:00]} Qxc6 {[%emt 0:00:32]} 24. Ba3 {[%emt 0:03:16]} a5 {[%emt 0:02:12]} 25. Ne1 {[%emt 0:03:02]} b5 {[%emt 0:13:15]} 26. axb5 {[%emt 0:04:01]} Qxb5 {[%emt 0:00:07]} 27. Nc2 {[%emt 0:01:22]} Kb7 {[%emt 0:02:25]} 28. Bxb4 {[%emt 0:02:34]} Bxb4 {[%emt 0:04:58]} 29. Nxb4 {[%emt 0:03:05]} Qxb4 {[%emt 0:00:58]} 30. Qxb4+ {[%emt 0:01:17]} axb4 {[%emt 0:00:10]} 31. Kf2 {[%emt 0:00:03]} Kc6 {[%emt 0:00:41]} 32. Kf3 {[%emt 0:00:31]} f5 {[%emt 0:02:51]} 33. Kg3 {[%emt 0:01:10]} Kd6 {[%emt 0:00:40]} 34. Kh4 {[%emt 0:00:43]} Ke7 {[%emt 0:00:25]} 35. Kh5 {[%emt 0:00:57]} Kf6 {[%emt 0:02:58]} 36. h3 {[%emt 0:01:19]} Ke7 {[%emt 0:01:34]} 37. Kg5 {[%emt 0:02:23]} Kf7 {[%emt 0:01:06]} 38. Kh4 {[%emt 0:14:29]} Kg6 {[%emt 0:01:01]} 39. Kg3 {[%emt 0:01:11]} 1/2-1/2

[Event "FISCA Open 2022"]
[Site "Cap Aurora"]
[Date "2022.06.25"]
[Round "4.10"]
[White "Iordache, Alexia-Andreea"]
[Black "Corbu, George-Alexandru"]
[Result "1/2-1/2"]
[ECO "B80"]
[WhiteElo "1658"]
[BlackElo "1914"]
[Annotator "NA RC"]
[PlyCount "52"]
[EventDate "2022.06.22"]
[EventType "swiss"]
[EventCountry "ROU"]
[SourceTitle "playchess.com"]
[Source "ChessBase"]
[SourceQuality "1"]
[TimeControl "5400+30"]

{[%evp 8,30,22,22,17,38,26,3,15,3,7,32767,8,28,10,-21,31,-35,29,-18,35,-10,0,16,0]} 1. e4 {[%emt 0:00:01]} c5 {[%emt 0:00:06]} 2. Nf3 {[%emt 0:00:04]} d6 {[%emt 0:00:03]} 3. d4 {[%emt 0:00:03]} cxd4 {[%emt 0:00:05]} 4. Nxd4 {[%emt 0:00:03]} Nf6 {[%emt 0:00:06]} 5. Nc3 {[%emt 0:00:04]} a6 {[%emt 0:00:03]} 6. f3 {[%emt 0:00:15]} e6 {[%emt 0:00:22]} 7. Be3 {[%emt 0:00:13]} b5 $1 {[%emt 0:00:23]} 8. g4 {[%emt 0:00:31]} h6 {[%emt 0:03:29]} 9. Qd2 {[%emt 0:00:11]} b4 {[%emt 0:02:31]} 10. Nce2 {[%emt 0:00:31]} e5 {[%emt 0:01:51]} 11. Nb3 {[%emt 0:10:37]} ({Not} 11. Qxb4 d5 12. Qa4+ Bd7 $17) (11. Nf5 $142) 11... Nc6 {[%emt 0:00:23]} 12. O-O-O {[%emt 0:06:27]} ({Better is} 12. Ng3 $1 $14) 12... Be6 {[%emt 0:00:29]} (12... a5 $1 $15) 13. Kb1 {[%emt 0:03:21]} (13. Ng3 $142 $1) 13... Qc7 {[%emt 0:04:18]} ({Black should try} 13... a5 $11) 14. h4 {[%emt 0:03:18]} (14. Ng3 $14) 14... d5 {[%emt 0:05:13]} 15. exd5 $11 {[%emt 0:07:06]} Nxd5 {[%emt 0:00:07]} 16. f4 {[%emt 0:15:51]} Rd8 {[%emt 0:02:48]} 17. Qc1 {[%emt 0:11:50]} Bxg4 {[%emt 0:01:08]} 18. Re1 {[%emt 0:10:31]} Be7 {[%emt 0:10:35]} 19. fxe5 {[%emt 0:03:32]} Nxe3 {[%emt 0:01:08]} 20. Qxe3 {[%emt 0:00:14]} Qxe5 {[%emt 0:00:12]} 21. Qxe5 {[%emt 0:02:37]} Nxe5 {[%emt 0:00:06]} 22. Ned4 {[%emt 0:01:17]} Nf3 {[%emt 0:00:48]} 23. Nxf3 {[%emt 0:01:32]} Bxf3 {[%emt 0:00:06]} 24. Rh3 {[%emt 0:01:18]} Bg4 {[%emt 0:01:46]} 25. Rhe3 {[%emt 0:04:11]} Be6 {[%emt 0:00:03]} 26. Re4 {[%emt 0:01:35]} O-O {[%emt 0:02:44]} 1/2-1/2

[Event "FISCA Open 2022"]
[Site "Cap Aurora"]
[Date "2022.06.25"]
[Round "4.11"]
[White "Nicolae, Marian-Valentin"]
[Black "Aldea, Maria-Antonia"]
[Result "1-0"]
[ECO "B25"]
[WhiteElo "1886"]
[BlackElo "1655"]
[Annotator "NA RC"]
[PlyCount "65"]
[EventDate "2022.06.22"]
[EventType "swiss"]
[EventCountry "ROU"]
[SourceTitle "playchess.com"]
[Source "ChessBase"]
[SourceQuality "1"]
[TimeControl "5400+30"]

1. e4 {[%emt 0:00:23]} c5 {[%emt 0:00:08]} 2. Nc3 {[%emt 0:01:25]} Nc6 {[%emt 0:01:36]} 3. g3 {[%emt 0:00:54]} g6 {[%emt 0:01:13]} 4. Bg2 {[%emt 0:01:12]} Bg7 {[%emt 0:00:10]} 5. Nge2 {[%emt 0:01:05]} e6 {[%emt 0:00:54]} 6. d3 {[%emt 0:05:01]} Nge7 {[%emt 0:00:35]} 7. Be3 {[%emt 0:05:15]} Nd4 {[%emt 0:02:12]} 8. O-O {[%emt 0:01:39]} d6 {[%emt 0:01:12]} 9. f4 {[%emt 0:04:25]} O-O {[%emt 0:01:07]} 10. g4 {[%emt 0:04:37]} f5 {[%emt 0:04:16]} 11. h3 {[%emt 0:03:25]} Rb8 {[%emt 0:03:04]} 12. Ng3 {[%emt 0:05:59]} b5 {[%emt 0:04:33]} 13. Rb1 {[%emt 0:01:59]} Bd7 {[%emt 0:04:06]} 14. Nce2 {[%emt 0:01:01]} b4 {[%emt 0:02:16]} 15. gxf5 {[%emt 0:10:35]} exf5 {[%emt 0:01:16]} 16. c3 {[%emt 0:00:32]} Nxe2+ {[%emt 0:04:50]} 17. Nxe2 {[%emt 0:02:15]} a5 {[%emt 0:02:22]} 18. e5 {[%emt 0:06:12]} dxe5 {[%emt 0:02:30]} 19. Bxc5 {[%emt 0:00:18]} Rb5 {[%emt 0:01:51]} 20. Qb3+ {[%emt 0:03:36]} Kh8 {[%emt 0:00:29]} 21. cxb4 {[%emt 0:00:13]} axb4 {[%emt 0:00:17]} 22. d4 {[%emt 0:06:46]} exd4 {[%emt 0:02:56]} 23. Bxd4 {[%emt 0:00:17]} Bc6 {[%emt 0:02:42]} 24. Rbd1 {[%emt 0:04:21]} Bxd4+ {[%emt 0:55:55]} 25. Rxd4 {[%emt 0:02:33]} Qb6 {[%emt 0:00:00]} 26. Qe6 {[%emt 0:07:37]} Re8 {[%emt 0:00:00]} 27. Qf7 {[%emt 0:02:55]} Ra5 {[%emt 0:00:00]} 28. Kh2 {[%emt 0:01:34]} Raa8 $18 {[%emt 0:00:00]} (28... Ng8 $19 {avoids the disaster.} 29. Rd2 Bb5) 29. Qf6+ {[%emt 0:00:50]} Kg8 {[%emt 0:00:00]} 30. Rd6 {[%emt 0:00:27]} Qb7 {[%emt 0:00:00]} 31. Rxc6 {[%emt 0:01:31]} Nxc6 {[%emt 0:00:00]} 32. Bd5+ {[%emt 0:00:32]} Re6 {[%emt 0:00:00]} 33. Bxe6+ {[%emt 0:00:16]} 1-0

[Event "FISCA Open 2022"]
[Site "Cap Aurora"]
[Date "2022.06.25"]
[Round "4.12"]
[White "Nacu, Mihai"]
[Black "Dobra, Costica"]
[Result "1/2-1/2"]
[ECO "A39"]
[WhiteElo "1641"]
[BlackElo "1837"]
[Annotator "NA RC"]
[PlyCount "83"]
[EventDate "2022.06.22"]
[EventType "swiss"]
[EventCountry "ROU"]
[SourceTitle "playchess.com"]
[Source "ChessBase"]
[SourceQuality "1"]
[TimeControl "5400+30"]

1. c4 {[%emt 1:31:00]} Nf6 {[%emt 1:31:00]} 2. Nc3 {[%emt 0:00:30]} g6 {[%emt 0:00:30]} 3. g3 {[%emt 0:00:30]} Bg7 {[%emt 0:00:30]} 4. Bg2 {[%emt 0:00:30]} O-O {[%emt 0:00:30]} 5. Nf3 {[%emt 0:00:30]} c5 {[%emt 0:00:30]} 6. O-O {[%emt 0:00:30]} Nc6 {[%emt 0:00:30]} 7. d4 {[%emt 0:00:30]} cxd4 {[%emt 0:00:30]} 8. Nxd4 {[%emt 0:00:30]} Qb6 {[%emt 0:00:30]} 9. Nb3 {[%emt 0:00:30]} (9. Nc2 $14) 9... Qb4 {[%emt 0:00:30]} 10. Nd2 {[%emt 0:00:30]} (10. c5 $142) 10... Qc5 {[%emt 0:00:30]} (10... d6 $11) 11. e3 {[%emt 0:00:30]} d6 {[%emt 0:00:30]} 12. a3 {[%emt 0:00:30]} Bg4 {[%emt 0:00:30]} 13. Qc2 {[%emt 0:00:30]} Qh5 {[%emt 0:00:30]} 14. f3 $15 {[%emt 0:00:30]} (14. Rb1 $142) 14... Be6 {[%emt 0:00:30]} 15. b4 {[%emt 0:00:30]} Ne5 {[%emt 0:00:30]} 16. Rb1 {[%emt 0:00:30]} Nxc4 {[%emt 0:00:30]} 17. Nxc4 {[%emt 0:00:30]} Bxc4 {[%emt 0:00:30]} 18. Re1 {[%emt 0:00:30]} Be6 {[%emt 0:00:30]} 19. Bb2 {[%emt 0:00:30]} Rfc8 {[%emt 0:00:30]} 20. Qf2 {[%emt 0:00:30]} a6 {[%emt 0:00:30]} 21. e4 {[%emt 0:00:30]} Rc4 {[%emt 0:00:30]} 22. Bf1 {[%emt 0:00:30]} Rc7 {[%emt 0:00:30]} 23. Ne2 {[%emt 0:00:30]} Rc2 {[%emt 0:00:30]} 24. Rec1 {[%emt 0:00:30]} Rac8 {[%emt 0:00:30]} 25. Rxc2 {[%emt 0:00:30]} Rxc2 {[%emt 0:00:30]} 26. Nf4 {[%emt 0:00:30]} Rxf2 {[%emt 0:00:30]} 27. Nxh5 {[%emt 0:00:30]} Rxb2 {[%emt 0:00:30]} 28. Rxb2 {[%emt 0:00:30]} Nxh5 {[%emt 0:00:30]} 29. Rc2 {[%emt 0:00:30]} Bd4+ {[%emt 0:00:30]} 30. Kg2 {[%emt 0:00:30]} Bb6 {[%emt 0:00:30]} 31. Bc4 {[%emt 0:00:30]} a5 {[%emt 0:00:30]} 32. Bxe6 {[%emt 0:00:30]} fxe6 {[%emt 0:00:30]} 33. Rc8+ {[%emt 0:00:30]} Kf7 {[%emt 0:00:30]} 34. Rb8 {[%emt 0:00:30]} axb4 {[%emt 0:00:30]} 35. Rxb7 {[%emt 0:00:30]} Be3 {[%emt 0:00:30]} 36. axb4 {[%emt 0:00:30]} d5 {[%emt 0:00:30]} 37. b5 {[%emt 0:00:30]} g5 {[%emt 0:00:30]} 38. b6 {[%emt 0:00:30]} Bd4 {[%emt 0:00:30]} 39. Rb8 Nf6 {[%emt 0:00:30]} 40. b7 {[%emt 0:01:00]} Be5 {[%emt 0:00:30]} 41. Rd8 {[%emt 0:00:30]} dxe4 {[%emt 0:00:30]} 42. fxe4 {[%emt 0:00:30]} 1/2-1/2

[Event "FISCA Open 2022"]
[Site "Cap Aurora"]
[Date "2022.06.25"]
[Round "4.13"]
[White "Bujorean, Dorel"]
[Black "Sprincean, Lukas George"]
[Result "0-1"]
[ECO "D91"]
[WhiteElo "1608"]
[BlackElo "1664"]
[Annotator "NA RC"]
[PlyCount "102"]
[EventDate "2022.06.22"]
[EventType "swiss"]
[EventCountry "ROU"]
[SourceTitle "playchess.com"]
[Source "ChessBase"]
[SourceQuality "1"]
[TimeControl "5400+30"]

1. d4 {[%emt 0:00:30]} Nf6 {[%emt 0:00:19]} 2. c4 {[%emt 0:00:07]} g6 {[%emt 0:00:05]} 3. Nc3 {[%emt 0:00:09]} d5 {[%emt 0:00:04]} 4. Nf3 {[%emt 0:00:12]} Bg7 {[%emt 0:00:12]} 5. Bg5 {[%emt 0:00:19]} c5 {[%emt 0:00:36]} 6. e3 {[%emt 0:04:05]} Ne4 {[%emt 0:12:30]} 7. Bh4 {[%emt 0:04:22]} Qa5 {[%emt 0:25:19]} 8. Qb3 {[%emt 0:02:08]} cxd4 {[%emt 0:07:18]} 9. exd4 {[%emt 0:00:13]} Nc6 {[%emt 0:00:18]} 10. cxd5 {[%emt 0:01:24]} Bxd4 {[%emt 0:04:25]} 11. Rc1 {[%emt 0:00:57]} Qc5 {[%emt 0:15:12]} 12. Rc2 {[%emt 0:00:28]} Nb4 {[%emt 0:04:16]} 13. Bb5+ {[%emt 0:04:30]} Bd7 {[%emt 0:00:31]} 14. Bxd7+ {[%emt 0:00:26]} Kxd7 {[%emt 0:00:02]} 15. Nxd4 {[%emt 0:00:32]} Qxd4 {[%emt 0:02:46]} 16. O-O {[%emt 0:05:47]} Nc5 {[%emt 0:00:55]} 17. Nb5 {[%emt 0:02:06]} Nxb3 {[%emt 0:02:46]} 18. Rc7+ {[%emt 0:00:11]} Ke8 {[%emt 0:01:27]} 19. Rxe7+ {[%emt 0:00:49]} Kf8 {[%emt 0:01:10]} 20. Nxd4 {[%emt 0:00:48]} Nxd4 {[%emt 0:00:10]} 21. Re4 {[%emt 0:02:06]} Nbc2 {[%emt 0:18:23]} 22. Bf6 {[%emt 0:00:36]} Kg8 {[%emt 0:00:24]} 23. Bxd4 {[%emt 0:02:06]} f5 {[%emt 0:01:15]} 24. Rf4 {[%emt 0:02:41]} Nxd4 {[%emt 0:01:22]} 25. Rxd4 {[%emt 0:00:07]} Kf7 {[%emt 0:00:13]} 26. Rc1 {[%emt 0:09:16]} Rac8 {[%emt 0:00:42]} 27. Rc3 {[%emt 0:00:18]} Kf6 {[%emt 0:00:45]} 28. f4 {[%emt 0:00:21]} Ke7 {[%emt 0:00:28]} 29. Rb4 {[%emt 0:03:02]} b6 {[%emt 0:00:32]} 30. Rd4 {[%emt 0:09:30]} Kd6 {[%emt 0:00:27]} 31. Kf2 {[%emt 0:02:07]} Rc5 {[%emt 0:00:20]} 32. Rcd3 {[%emt 0:00:32]} Re8 {[%emt 0:00:31]} 33. b4 {[%emt 0:00:47]} Rc2+ {[%emt 0:00:30]} 34. Rd2 {[%emt 0:00:21]} Rc3 {[%emt 0:00:10]} 35. R4d3 {[%emt 0:01:13]} Rxd3 {[%emt 0:00:33]} 36. Rxd3 {[%emt 0:00:05]} Re4 {[%emt 0:00:03]} 37. a3 {[%emt 0:00:23]} Rxf4+ {[%emt 0:00:03]} 38. Kg3 {[%emt 0:00:23]} Re4 {[%emt 0:00:17]} 39. h4 {[%emt 0:01:46]} Re5 {[%emt 0:00:28]} 40. h5 {[%emt 0:00:25]} Rxd5 {[%emt 0:00:59]} 41. Rc3 {[%emt 0:00:05]} Kd7 {[%emt 0:01:36]} 42. hxg6 {[%emt 0:00:21]} hxg6 {[%emt 0:00:01]} 43. Kf4 {[%emt 0:00:06]} Rd4+ {[%emt 0:00:28]} 44. Ke5 {[%emt 0:00:12]} Rg4 {[%emt 0:00:14]} 45. g3 {[%emt 0:00:05]} Re4+ {[%emt 0:01:21]} 46. Kf6 {[%emt 0:00:05]} Re6+ {[%emt 0:00:20]} 47. Kf7 {[%emt 0:01:24]} g5 {[%emt 0:00:35]} 48. Rf3 {[%emt 0:00:12]} g4 {[%emt 0:00:31]} 49. Rxf5 {[%emt 0:00:16]} Re3 {[%emt 0:00:14]} 50. a4 {[%emt 0:01:28]} Rxg3 {[%emt 0:00:10]} 51. a5 {[%emt 0:00:04]} Rf3 {[%emt 0:01:44]} 0-1